bitfinex/quotes_ETHUSD_20240924
["timestamp","ask_amount","ask_price","bid_price","bid_amount"]
[1727216883210,0.0389564,2666.6,2665.6,0.8121]
[1727216883412,0.0389564,2666.6,2666.3,3.75041]
[1727216884774,0.0389564,2666.6,2666.3,7.50083]
[1727216885160,0.0389564,2666.6,2666.3,3.75041]
[1727216885365,0.0389564,2666.6,2666.4,3.75036]
[1727216885646,0.0389564,2666.6,2666.3,3.75041]
[1727216886076,0.0389564,2666.6,2666.3,7.50082]
[1727216886386,0.0389564,2666.6,2666.3,3.7505]
[1727216886598,0.0389564,2666.6,2666.5,3.75023]
[1727216887787,0.0389564,2666.6,2666.3,3.7505]
[1727216887788,0.0389564,2666.6,2666.4,3.75029]
[1727216889276,0.0389564,2666.6,2666.3,3.75042]
[1727216889893,0.0389564,2666.6,2666.4,3.75036]
[1727216890622,0.0389564,2666.6,2666.1,3.75071]
[1727216890904,3.7890464,2666.6,2666.1,3.75071]
[1727216891128,1.14623437,2666.5,2666.1,3.75071]
[1727216891416,0.0389564,2666.6,2666.1,3.75071]
[1727216891417,0.0389564,2666.6,2666.1,7.50139]
[1727216891569,0.0389564,2666.6,2666.1,3.75068]
[1727216891766,0.7715,2666.3,2665.9,7.50197]
[1727216892082,0.7715,2666.3,2665.9,3.75098]
[1727216892471,0.7715,2666.3,2665.9,7.50197]
[1727216892708,0.7715,2666.3,2666.0,3.75089]
[1727216893380,0.7715,2666.3,2665.9,3.75098]
[1727216894106,0.7715,2666.3,2665.9,3.75103]
[1727216894309,0.7715,2666.3,2665.9,7.50206]
[1727216894605,1.223681,2666.3,2665.9,3.75103]
[1727216894973,0.7715,2666.3,2665.9,3.75103]
[1727216896032,0.7715,2666.3,2666.1,3.75079]
[1727216896383,3.7891364,2666.6,2665.6,4.56357]
[1727216896384,0.8104564,2666.6,2666.2,3.75065]
[1727216897125,0.8104564,2666.6,2666.2,3.75057]
[1727216897304,0.8104564,2666.6,2666.2,3.75058]
[1727216897720,0.8104564,2666.6,2666.4,3.75036]
[1727216898038,1.34509046,2666.6,2666.3,3.75045]
[1727216898531,0.8104564,2666.6,2666.3,3.75045]
[1727216898737,0.8104564,2666.6,2666.4,3.75037]
[1727216899033,0.8104564,2666.6,2666.2,3.75051]
[1727216899297,0.8104564,2666.6,2666.5,3.75023]
[1727216899419,0.0389564,2666.6,2666.4,3.75037]
[1727216899624,0.0389564,2666.6,2666.4,7.50067]
[1727216899803,0.0389564,2666.6,2666.5,3.75023]
[1727216899989,0.0389564,2666.6,2666.4,7.50059]
[1727216900327,0.0389564,2666.6,2666.4,3.75029]
[1727216900505,0.0389564,2666.6,2666.5,3.75023]
[1727216900699,0.0389564,2666.6,2666.4,3.75028]
[1727216901021,0.0389564,2666.6,2666.5,3.75023]
[1727216901326,0.0389564,2666.6,2666.2,3.75055]
[1727216901716,0.0389564,2666.6,2666.3,3.75039]
[1727216901921,0.0389564,2666.6,2666.2,3.75055]
[1727216902096,0.88275719,2666.6,2666.2,3.75055]
[1727216902619,0.88275719,2666.6,2666.2,7.50109]
[1727216902818,0.88275719,2666.6,2666.2,3.75054]
[1727216903033,0.88275719,2666.6,2666.3,3.75049]
[1727216903593,1.66882138,2666.6,2666.3,3.75049]
[1727216904044,0.39254826,2666.5,2666.3,3.75049]
[1727216904791,1.55756419,2666.4,2665.9,3.75101]
[1727216904995,2.56368992,2666.3,2666.0,3.7509]
[1727216905234,2.56385067,2666.2,2666.0,3.7509]
[1727216905437,2.56462619,2666.1,2666.0,3.7509]
[1727216905607,1.85352777,2666.1,2665.9,3.751]
[1727216905930,0.71105029,2666.0,2665.9,3.751]
[1727216906131,0.78606419,2666.1,2665.9,3.751]
[1727216906132,1.49711448,2666.1,2665.9,3.751]
[1727216906291,1.49711448,2666.1,2666.0,3.75093]
[1727216906490,1.77913138,2666.1,2666.0,3.75093]
[1727216907519,2.95933077,2666.1,2665.8,3.7512]
[1727216907724,2.56487793,2666.0,2665.9,3.75107]
[1727216908356,0.78556983,2666.0,2665.9,3.75107]
[1727216908555,1.49662012,2666.0,2665.9,3.75107]
[1727216908851,0.71105029,2666.0,2665.9,3.75107]
[1727216909036,1.49662012,2666.0,2665.9,3.75107]
[1727216909356,0.71105029,2666.0,2665.9,3.75107]
[1727216909658,1.49662012,2666.0,2665.9,3.75107]
[1727216910030,2.56487793,2666.0,2665.9,3.75107]
[1727216910554,2.56832054,2666.0,2665.9,3.75107]
[1727216911272,1.78275071,2666.0,2665.9,3.75107]
[1727216911474,2.56832054,2666.0,2665.9,3.75107]
[1727216912470,1.49867011,2666.0,2665.9,3.75107]
[1727216912682,2.56832054,2666.0,2665.9,3.75107]
[1727216912966,1.49867011,2666.0,2665.9,3.75107]
[1727216913170,2.56832054,2666.0,2665.9,3.75107]
[1727216913674,1.78275071,2666.0,2665.9,3.75107]
[1727216914261,2.56832054,2666.0,2665.9,3.75107]
[1727216914462,1.78275071,2666.0,2665.9,3.75107]
[1727216914774,0.78556983,2666.1,2666.0,3.75093]
[1727216915084,1.49922474,2666.1,2666.0,3.75093]
[1727216915242,2.56970711,2666.1,2666.0,3.75093]
[1727216916664,1.78413728,2666.1,2665.9,3.75101]
[1727216916995,0.71369512,2666.0,2665.9,3.75101]
[1727216917844,2.56983678,2666.0,2665.7,0.8216]
[1727216918190,0.78556983,2665.8,2665.6,3.75148]
[1727216918486,2.56996866,2665.7,2665.6,3.75148]
[1727216919590,1.49926495,2665.7,2665.6,3.75148]
[1727216919795,2.56996866,2665.7,2665.6,3.75148]
[1727216919953,1.49926495,2665.7,2665.6,3.75148]
[1727216920148,2.56996866,2665.7,2665.6,3.75148]
[1727216921289,1.49926495,2665.7,2665.6,3.75148]
[1727216921500,2.56996866,2665.7,2665.6,3.75148]
[1727216922458,2.56996866,2665.7,2665.6,4.50179]
[1727216922685,0.78556983,2665.8,2665.7,3.75135]
[1727216922858,2.57076164,2665.8,2665.7,3.75135]
[1727216923055,0.71407672,2665.8,2665.7,3.75135]
[1727216923554,2.5710102,2665.8,2665.7,3.75135]
[1727216923773,2.57097245,2665.8,2665.7,5.034936]
[1727216924165,0.78556983,2665.9,2665.8,3.75121]
[1727216924366,2.57115424,2665.9,2665.8,3.75121]
[1727216924774,0.78556983,2665.9,2665.8,3.75121]
[1727216924973,2.96634672,2665.9,2665.8,3.75121]
[1727216927206,2.96634672,2665.9,2665.8,4.7879646]
[1727216928463,2.96634672,2665.9,2665.8,3.75121]
[1727216929059,2.96634672,2665.9,2665.5,3.75157]
[1727216929266,1.78703723,2665.8,2665.7,3.75135]
[1727216930022,2.57422048,2665.8,2665.7,3.75135]
[1727216930311,2.96723662,2665.8,2665.7,3.75135]
[1727216930609,2.96798082,2665.8,2665.7,3.75135]
[1727216932264,3.77428082,2665.8,2665.7,3.75135]
[1727216932467,5.59895967,2665.8,2665.7,3.75135]
[1727216932803,4.02326439,2665.8,2665.7,3.75135]
[1727216933006,4.02326439,2665.8,2665.6,3.75148]
[1727216933212,4.79178471,2665.7,2665.6,3.75148]
[1727216933892,3.00474748,2665.7,2665.4,3.75164]
[1727216934094,1.18114375,2665.5,2665.1,3.75212]
[1727216934277,2.96870798,2665.4,2665.2,3.75195]
[1727216934469,1.78756423,2665.3,2665.2,3.75195]
[1727216934665,2.96870798,2665.3,2665.2,3.75195]
[1727216935072,2.96870798,2665.3,2664.9,4.50367]
[1727216935272,4.27270109,2665.0,2664.9,0.7513]
[1727216935468,8.27777202,2665.0,2664.6,3.7528]
[1727216935663,1.18135582,2664.7,2664.6,3.7528]
[1727216935896,2.96892005,2664.7,2664.4,3.7531]
[1727216936100,2.5751587,2664.6,2664.4,3.7531]
[1727216936280,2.57468502,2664.5,2664.1,0.7513]
[1727216936479,0.78759447,2664.6,2664.4,3.75306]
[1727216936679,0.71482764,2664.5,2664.4,3.75319]
[1727216937004,0.71482764,2664.5,2663.7,0.7513]
[1727216937005,0.8255,2664.4,2663.7,0.7513]
[1727216937165,0.78759447,2664.2,2664.1,3.7536]
[1727216937364,1.78578129,2664.2,2664.1,3.7536]
[1727216937579,2.57340318,2664.2,2664.1,3.7536]
[1727216937868,2.6489487,2664.2,2663.6,4.50558]
[1727216938072,2.6489487,2664.2,2663.8,3.75399]
[1727216938073,0.71430793,2664.1,2663.8,3.75399]
[1727216938293,0.78759447,2664.2,2663.8,3.75399]
[1727216938494,0.78759447,2664.2,2663.4,0.0389564]
[1727216938495,3.09155734,2664.0,2663.5,3.75444]
[1727216938707,3.09155734,2664.0,2663.4,0.7902564]
[1727216938708,1.5391634,2663.9,2663.4,0.0389564]
[1727216938913,1.96895029,2664.3,2663.8,0.7513]
[1727216939069,0.8255,2664.8,2663.9,3.82890128]
[1727216939070,1.61309447,2664.8,2663.9,3.82890128]
[1727216939418,0.8255,2664.8,2664.4,3.75305]
[1727216939567,3.91705734,2664.8,2664.4,3.75305]
[1727216939970,3.91705734,2664.8,2664.4,7.50614]
[1727216940316,3.91705734,2664.8,2664.0,0.07506032]
[1727216940317,0.8255,2664.8,2664.0,0.07506032]
[1727216940471,0.78759447,2664.9,2664.7,3.75276]
[1727216940680,4.5794566,2665.0,2664.8,3.75262]
[1727216940914,0.71395225,2664.9,2664.8,3.75262]
[1727216941324,1.61309447,2665.0,2664.8,3.75262]
[1727216941522,0.71378309,2664.9,2664.8,3.75262]
[1727216941884,1.61309447,2665.0,2664.7,3.75272]
[1727216942083,3.09155734,2664.8,2664.1,3.75357]
[1727216942413,0.8255,2664.5,2664.4,3.75319]
[1727216942587,0.8255,2664.5,2663.8,3.7513]
[1727216942588,1.61309447,2664.8,2664.6,3.7529]
[1727216942927,0.78759447,2664.9,2664.7,3.75276]
[1727216943219,1.61309447,2665.1,2664.8,3.75262]
[1727216943445,0.8255,2665.1,2664.9,7.50488]
[1727216943722,3.91705734,2665.1,2664.8,3.75261]
[1727216943896,3.09155734,2664.9,2664.7,7.50538]
[1727216944099,3.09155734,2664.9,2664.8,3.75262]
[1727216944631,0.8255,2665.1,2665.0,3.75234]
[1727216944787,0.8255,2665.1,2664.8,3.75255]
[1727216944988,0.8255,2665.1,2664.8,7.50507]
[1727216945185,0.8255,2665.1,2664.8,3.75252]
[1727216945385,0.8255,2665.1,2665.0,3.75234]
[1727216945940,0.8255,2665.1,2664.7,3.75268]
[1727216946079,0.8255,2665.1,2664.4,4.50443]
[1727216946080,3.09155734,2664.9,2664.8,3.75262]
[1727216946281,3.09155734,2664.9,2664.5,3.75295]
[1727216946481,0.8255,2665.1,2664.5,3.75295]
[1727216946482,0.07554552,2664.8,2664.5,3.75295]
[1727216946697,3.75236,2665.0,2664.5,7.50591]
[1727216946698,3.09155734,2664.6,2664.5,7.50591]
[1727216946921,3.09155734,2664.6,2664.5,3.75295]
[1727216947385,3.91705734,2664.6,2664.3,3.75323]
[1727216947707,3.91705734,2664.6,2664.1,7.507]
[1727216947708,4.68402607,2664.6,2664.1,7.507]
[1727216947926,4.68402607,2664.6,2663.7,4.50541]
[1727216947927,3.09155734,2664.3,2663.9,3.75377]
[1727216948090,3.09155734,2664.3,2663.7,0.7513]
[1727216948091,3.09155734,2663.8,2663.7,4.50547]
[1727216948422,3.09155734,2663.8,2663.7,3.75417]
[1727216949726,0.8017,2663.9,2663.4,3.7934264]
[1727216949935,3.09155734,2663.5,2663.4,3.7934264]
[1727216950290,0.8017,2663.9,2663.6,3.75427]
[1727216950291,3.09155734,2663.8,2663.6,3.75427]
[1727216950812,0.8017,2663.9,2663.7,3.75408]
[1727216952095,0.07554552,2663.8,2663.4,0.0389564]
[1727216952294,7.64770734,2663.5,2663.4,0.0389564]
[1727216952516,7.72325286,2663.5,2663.4,0.0389564]
[1727216952723,7.64770734,2663.5,2663.4,0.0389564]
[1727216952930,8.94221504,2663.5,2663.4,0.0389564]
[1727216953103,8.86666952,2663.5,2663.4,0.0389564]
[1727216953322,5.11221952,2663.5,2663.4,0.0389564]
[1727216953640,8.94221504,2663.5,2663.4,0.0389564]
[1727216953845,8.86666952,2663.5,2663.4,0.0389564]
[1727216953992,5.11221952,2663.5,2663.4,0.0389564]
[1727216954191,5.18776504,2663.5,2663.4,0.0389564]
[1727216954427,5.11221952,2663.5,2663.4,0.0389564]
[1727216954600,8.94221504,2663.5,2663.4,0.0389564]
[1727216954806,8.86666952,2663.5,2663.4,0.0389564]
[1727216956435,5.11221952,2663.5,2663.4,0.0389564]
[1727216956746,5.32801528,2664.1,2663.4,0.7942564]
[1727216956747,1.19472946,2664.1,2663.4,0.7942564]
[1727216956899,0.8017,2664.1,2663.8,3.75391]
[1727216957302,3.09155734,2664.0,2663.8,3.75391]
[1727216959374,3.09155734,2664.0,2663.8,7.50785]
[1727216960235,3.09155734,2664.0,2663.9,3.75389]
[1727216960445,0.8017,2664.1,2663.9,3.75389]
[1727216960660,0.8017,2665.0,2664.6,3.75287]
[1727216960942,0.8017,2665.0,2664.2,0.7553]
[1727216960943,3.80676281,2664.8,2664.2,0.7553]
[1727216961106,3.80676281,2664.8,2664.6,3.75283]
[1727216961301,4.26760909,2664.8,2664.6,3.75283]
[1727216961724,8.02030909,2664.8,2663.8,0.7553]
[1727216961925,3.80676281,2664.4,2664.2,3.75334]
[1727216962149,3.80676281,2664.4,2663.5,0.7553]
[1727216962349,0.46084628,2664.8,2663.6,3.75422]
[1727216962350,3.80676281,2664.0,2663.6,3.75422]
[1727216963001,0.46084628,2664.8,2663.9,0.7553]
[1727216963219,3.75255,2664.9,2664.2,3.75334]
[1727216963420,3.75255,2664.9,2663.9,0.7553]
[1727216963421,3.75255,2664.9,2664.4,3.75312]
[1727216963673,3.75255,2664.9,2664.4,3.75307]
[1727216963817,0.455425,2664.8,2664.0,0.07506715]
[1727216964014,0.8017,2665.0,2664.8,3.75253]
[1727216964213,0.8017,2665.0,2664.7,3.75276]
[1727216964458,0.46084628,2664.9,2664.7,3.75276]
[1727216964815,0.46084628,2664.9,2664.7,3.75269]
[1727216965561,0.46084628,2664.9,2664.8,3.75262]
[1727216966362,0.5363918,2664.9,2664.5,3.75294]
[1727216966569,3.80676281,2664.7,2664.5,3.75294]
[1727216966716,3.80676281,2664.7,2664.3,3.75323]
[1727216966919,3.80676281,2664.7,2664.3,7.50642]
[1727216967239,3.80676281,2664.7,2664.4,3.75318]
[1727216967755,3.80676281,2664.7,2664.3,3.75319]
[1727216967969,4.55506,2664.3,2663.6,4.85422]
[1727216968181,4.55506,2664.3,2663.6,1.1]
[1727216968182,3.82901552,2664.2,2663.6,1.1]
[1727216968463,3.80676281,2664.0,2663.6,4.85423]
[1727216968764,3.80676281,2664.0,2663.7,3.75409]
[1727216969068,3.80676281,2664.0,2663.6,4.85423]
[1727216969573,3.80676281,2664.0,2663.6,8.60847]
[1727216969759,3.80676281,2664.0,2663.6,4.85423]
[1727216972343,4.98370069,2664.0,2663.6,4.85423]
[1727216973083,0.455506,2664.2,2663.7,3.75415]
[1727216973379,0.8017,2664.3,2663.9,3.75387]
[1727216974852,0.8017,2664.3,2663.7,3.75416]
[1727216975040,4.55507,2664.3,2663.8,3.75393]
[1727216975559,0.8017,2664.3,2663.7,3.75416]
[1727216975767,0.8017,2664.3,2663.9,3.75388]
[1727216975989,2.09193373,2664.3,2663.9,3.75388]
[1727216977660,5.84527373,2664.3,2663.8,3.754]
[1727216977886,5.84527373,2664.3,2663.7,3.75416]
[1727216978052,1.7209787,2664.2,2663.8,3.75401]
[1727216978259,1.7209787,2664.2,2663.7,3.75416]
[1727216978260,2.8795282,2664.3,2663.7,3.75416]
[1727216978464,0.6885502,2664.2,2663.7,3.75416]
[1727216979092,1.72139831,2664.2,2663.8,3.75403]
[1727216979287,1.58929447,2664.3,2663.8,3.75403]
[1727216979585,5.47561182,2664.2,2663.8,3.75403]
[1727216979807,3.75347,2664.2,2663.8,3.75403]
[1727216980081,0.68918214,2664.1,2663.7,3.75417]
[1727216980455,3.09282504,2664.1,2663.7,3.75417]
[1727216981076,3.88041951,2664.1,2663.7,3.75417]
[1727216982149,0.68957017,2664.0,2663.7,3.75417]
[1727216982355,3.88041951,2664.1,2663.7,3.75417]
[1727216982551,0.68957001,2664.0,2663.7,3.75417]
[1727216982894,3.88041951,2664.1,2663.7,3.75417]
[1727216983062,0.6895685,2664.0,2663.7,3.75417]
[1727216983469,0.6895685,2664.0,2663.6,8.60847]
[1727216983665,3.88041951,2664.1,2663.7,3.75414]
[1727216983869,0.68958445,2664.0,2663.7,3.75414]
[1727216984072,3.88041951,2664.1,2663.7,3.75414]
[1727216984273,0.68959124,2664.0,2663.7,3.75414]
[1727216986902,3.88041951,2664.1,2663.8,3.75401]
[1727216987295,0.69014713,2664.0,2663.8,3.75401]
[1727216987902,0.78759447,2664.2,2664.1,3.75361]
[1727216988059,2.51298197,2664.2,2664.1,3.75361]
[1727216988256,0.690155,2664.2,2664.1,3.75361]
[1727216988799,0.78759447,2664.3,2664.2,3.75347]
[1727216988959,1.82294777,2664.3,2664.2,3.75347]
[1727216989159,2.5131833,2664.3,2664.2,3.75347]
[1727216989562,0.69023553,2664.3,2664.2,3.75347]
[1727216989760,0.78759447,2664.4,2664.2,3.75347]
[1727216990066,0.78759447,2664.5,2664.1,4.54384]
[1727216990268,1.4780904,2664.5,2664.1,4.54379]
[1727216990497,2.5138343,2664.4,2664.1,4.54379]
[1727216990702,0.78759447,2664.4,2664.1,4.54379]
[1727216991079,2.52259884,2664.4,2664.1,4.54379]
[1727216991406,2.52259884,2664.4,2664.1,0.7903]
[1727216991407,0.69400071,2664.3,2664.1,0.7903]
[1727216991591,0.78759447,2664.4,2664.2,3.75339]
[1727216991918,1.48178386,2664.4,2664.2,3.75339]
[1727216992062,2.52337181,2664.3,2664.2,3.75339]
[1727216992256,1.73577734,2664.3,2664.2,3.75339]
[1727216992500,2.52337181,2664.3,2664.2,3.75339]
[1727216992862,1.73577734,2664.3,2664.2,3.75339]
[1727216993062,2.52337181,2664.3,2664.2,3.75339]
[1727216994706,1.73577734,2664.3,2664.2,3.75339]
[1727216994998,2.52337181,2664.3,2664.2,3.75339]
[1727216995207,1.73588044,2664.3,2664.2,3.75339]
[1727216995378,0.69418939,2664.3,2664.2,3.75339]
[1727216996277,1.48178386,2664.3,2664.2,3.75339]
[1727216996473,1.73578984,2664.3,2664.2,3.75339]
[1727216996719,0.69440111,2664.3,2664.2,3.75339]
[1727216997125,1.73596288,2664.3,2664.2,3.75339]
[1727216997438,0.78759447,2664.6,2664.4,3.75319]
[1727216997619,1.48190616,2664.6,2664.5,3.75304]
[1727216998024,1.73576361,2664.6,2664.5,3.75304]
[1727216998225,0.69431169,2664.6,2664.4,3.75312]
[1727216998525,2.5210398,2664.6,2664.4,7.5062]
[1727216998860,0.78759447,2664.6,2664.4,7.5062]
[1727216999021,2.51949296,2664.6,2664.4,7.5062]
[1727216999219,0.69275939,2664.5,2664.4,7.5062]
[1727216999733,0.78759447,2664.6,2664.4,3.75309]
[1727217000065,2.51980617,2664.6,2664.4,7.5062]
[1727217000363,0.69288474,2664.5,2664.4,3.75309]
[1727217000731,0.78759447,2664.6,2664.4,3.75309]
[1727217000937,0.69308246,2664.5,2664.4,3.75309]
[1727217001143,2.52064085,2664.5,2664.4,3.75309]
[1727217001750,2.52064085,2664.5,2664.3,3.75333]
[1727217001751,5.61252458,2664.5,2664.3,3.75333]
[1727217001959,0.69308246,2664.4,2664.3,3.75333]
[1727217002133,2.52015066,2664.4,2664.3,3.75333]
[1727217003562,1.7334975,2664.4,2664.3,3.75333]
[1727217003862,2.52007033,2664.4,2664.3,4.6660119]
[1727217004071,0.69308246,2664.4,2664.3,4.6660119]
[1727217004434,0.78665316,2664.6,2664.5,3.75304]
[1727217004638,0.78665316,2664.7,2664.6,3.7529]
[1727217004842,3.75287,2664.7,2664.1,3.75352]
[1727217005049,3.09282504,2664.4,2664.1,3.75352]
[1727217005370,2.52029208,2664.3,2664.1,3.75352]
[1727217005523,0.69352052,2664.2,2664.1,3.75352]
[1727217005726,0.69351787,2664.2,2664.0,3.75374]
[1727217005960,0.78665316,2664.3,2664.1,3.75359]
[1727217006180,0.78665316,2664.3,2664.0,3.75374]
[1727217006181,1.73383099,2664.2,2664.0,3.75374]
[1727217006323,0.78665316,2664.3,2664.1,3.75361]
[1727217006525,1.73383132,2664.2,2664.1,3.75361]
[1727217006831,2.52048448,2664.2,2664.1,3.75361]
[1727217007043,1.48019048,2664.2,2664.1,3.75361]
[1727217007252,2.52048448,2664.2,2664.1,3.75361]
[1727217007639,2.91518714,2664.2,2663.9,5.7538]
[1727217007973,3.09282504,2664.0,2663.9,5.7538]
[1727217008153,2.5208246,2664.0,2663.9,5.7538]
[1727217009163,2.5211228,2664.0,2663.9,5.7538]
[1727217009488,2.52108043,2664.0,2663.9,5.7538]
[1727217009767,0.78699328,2664.1,2664.0,3.75375]
[1727217009946,1.73404072,2664.1,2663.9,5.7538]
[1727217010146,0.69361629,2664.0,2663.9,2.0]
[1727217010464,6.80488987,2664.0,2663.9,2.0]
[1727217010660,8.01824223,2664.0,2663.9,2.0]
[1727217010980,13.5532886,2664.0,2663.9,2.0]
[1727217011266,14.26327603,2664.0,2663.9,2.0]
[1727217011465,16.62496569,2664.0,2663.9,2.0]
[1727217012491,13.3738179,2664.0,2663.6,1.1]
[1727217012651,8.19359504,2663.7,2663.6,1.1]
[1727217012846,15.4116055,2663.7,2663.6,1.1]
[1727217013384,19.14286438,2663.7,2663.6,1.1]
[1727217013544,21.89820759,2663.7,2663.6,1.1]
[1727217013748,5.10105,2663.5,2663.4,0.5389564]
[1727217013986,11.31592836,2663.5,2663.4,0.5389564]
[1727217014155,13.05031934,2663.5,2663.4,0.5389564]
[1727217014687,12.29586934,2663.5,2662.6,0.0389564]
[1727217014982,4.67590192,2662.7,2662.6,0.0389564]
[1727217015182,6.41046675,2662.7,2662.6,0.0389564]
[1727217015690,4.58325097,2662.7,2662.6,0.0389564]
[1727217016062,0.78647688,2662.9,2662.6,3.7945964]
[1727217016278,2.5181579,2662.9,2662.6,8.360287]
[1727217016477,0.78647688,2662.9,2662.6,3.84959436]
[1727217016786,1.58307688,2663.0,2662.6,3.84959436]
[1727217017016,1.73405829,2662.9,2662.6,3.84959436]
[1727217017158,1.58307688,2663.0,2662.6,3.84959436]
[1727217017504,0.69359234,2662.9,2662.7,3.7555]
[1727217017648,1.58307688,2663.0,2662.6,3.7945964]
[1727217017848,0.7966,2663.0,2662.8,0.05480078]
[1727217018087,1.58307688,2663.0,2662.7,3.81047527]
[1727217018300,0.7966,2663.0,2662.9,0.0546863]
[1727217018581,1.48992297,2663.0,2662.7,3.75556]
[1727217018745,0.7966,2663.0,2662.9,0.0546863]
[1727217018946,3.49056422,2663.0,2662.8,0.05480078]
[1727217019174,3.09282504,2662.9,2662.6,3.7945864]
[1727217019352,3.09282504,2662.9,2662.7,3.75555]
[1727217019589,3.09282504,2662.9,2662.7,3.81037622]
[1727217019953,3.09282504,2662.9,2662.7,0.05482622]
[1727217021893,3.93593823,2662.9,2662.7,0.05482622]
[1727217022584,3.09282504,2662.9,2662.7,0.05482622]
[1727217023578,3.09282504,2663.1,2662.7,0.05482622]
[1727217023802,3.09282504,2662.8,2662.7,0.05482622]
[1727217024890,7.62476504,2662.8,2662.7,0.05482622]
[1727217025191,8.7703191,2662.8,2662.7,0.05482622]
[1727217025394,8.7703191,2662.8,2662.6,0.0389564]
[1727217025979,8.7703191,2662.8,2662.7,0.05572269]
[1727217026458,5.0148791,2662.8,2662.7,0.05572269]
[1727217026863,8.84586462,2662.8,2662.7,0.05572269]
[1727217027073,5.0148791,2662.8,2662.7,0.05572269]
[1727217027255,3.09282504,2663.0,2662.7,0.05572269]
[1727217029572,3.09282504,2663.0,2662.7,3.81118269]
[1727217030298,3.09282504,2663.0,2662.7,7.56668269]
[1727217030467,3.09282504,2663.0,2662.7,3.81118269]
[1727217030668,3.09282504,2663.0,2662.7,7.56669269]
[1727217030867,3.09282504,2663.0,2662.8,3.75538]
[1727217031077,3.09282504,2663.0,2662.8,3.81098183]
[1727217031585,3.09282504,2663.3,2662.9,3.7553]
[1727217031811,3.09282504,2663.3,2662.9,3.75522]
[1727217032113,3.09282504,2663.3,2662.9,7.51045]
[1727217032307,3.09282504,2663.3,2662.9,7.51044]
[1727217032820,4.5311,2663.4,2662.6,0.0389564]
[1727217032821,3.75558,2662.7,2662.6,0.0389564]
[1727217033112,7.62490504,2662.7,2662.6,0.0389564]
[1727217033277,3.86932504,2662.7,2662.6,0.0389564]
[1727217033909,7.62490504,2662.7,2662.6,0.0389564]
[1727217034207,8.76294954,2662.7,2662.6,0.0389564]
[1727217034518,5.00736954,2662.7,2662.6,0.0389564]
[1727217034739,8.76294954,2662.7,2662.6,0.0389564]
[1727217034873,5.00736954,2662.7,2662.6,0.0389564]
[1727217035395,7.62490504,2662.7,2662.6,0.0389564]
[1727217036711,3.86932504,2662.7,2662.6,0.0389564]
[1727217036880,7.62490504,2662.7,2662.6,0.0389564]
[1727217040284,7.70045056,2662.7,2662.6,0.0389564]
[1727217040484,0.8272,2662.1,2661.8,0.0389564]
[1727217040786,6.84941504,2662.0,2661.8,0.0389564]
[1727217041005,3.09282504,2662.0,2661.8,0.0389564]
[1727217041318,6.84948504,2662.0,2661.8,0.0389564]
[1727217041546,4.5243785,2661.9,2661.8,0.0389564]
[1727217042124,5.3515785,2661.9,2661.8,0.0389564]
[1727217042849,5.3515785,2661.9,2661.0,4.5701364]
[1727217042850,3.75783,2661.2,2661.0,0.0389564]
[1727217043143,5.33021663,2661.1,2660.2,0.0389564]
[1727217043291,0.8272,2661.1,2660.3,0.7733]
[1727217043491,3.09282504,2660.4,2660.3,0.7733]
[1727217043688,3.09282504,2660.4,2660.3,4.53227]
[1727217047045,3.09282504,2660.4,2660.2,0.0389564]
[1727217047454,3.09282504,2660.4,2660.3,3.75897]
[1727217048427,3.09282504,2660.7,2660.3,3.75897]
[1727217049250,3.09282504,2660.4,2660.2,3.7980664]
[1727217049833,3.40210754,2660.7,2660.4,3.75881]
[1727217050114,3.09282504,2660.7,2660.4,3.75881]
[1727217050313,3.09282504,2660.7,2660.4,3.75875]
[1727217050622,3.09282504,2661.4,2660.8,3.75826]
[1727217050952,3.92002504,2661.7,2661.3,3.75747]
[1727217051157,3.92002504,2661.7,2661.2,3.7577]
[1727217051449,3.92002504,2661.7,2661.3,3.7575]
[1727217051615,3.92002504,2661.7,2661.4,3.75736]
[1727217051616,3.09282504,2661.7,2661.4,3.75736]
[1727217051818,3.09282504,2661.7,2661.1,0.7733]
[1727217052012,3.09282504,2661.7,2661.3,3.75748]
[1727217052441,3.09282504,2661.7,2661.4,3.75731]
[1727217052648,3.09282504,2661.7,2661.5,3.75727]
[1727217053029,3.09282504,2661.7,2661.2,3.75765]
[1727217053222,3.09282504,2661.4,2661.2,3.75765]
[1727217053755,3.09282504,2661.4,2661.3,3.75756]
[1727217054416,3.09282504,2661.7,2660.8,0.7733]
[1727217054748,3.09282504,2661.7,2661.3,3.75748]
[1727217055059,3.09282504,2661.7,2661.4,3.7574]
[1727217055446,8.34044,2662.0,2661.4,3.7574]
[1727217055743,3.09282504,2661.6,2661.4,3.7574]
[1727217057578,3.09282504,2661.6,2661.3,3.75748]
[1727217058183,3.09282504,2661.6,2661.4,3.75733]
[1727217058678,3.09282504,2661.6,2661.5,3.75727]
[1727217058847,3.09282504,2661.6,2661.3,7.5149]
[1727217059051,3.09282504,2661.6,2661.3,3.75742]
[1727217060250,3.09282504,2661.4,2661.3,3.75742]
[1727217060446,3.09282504,2661.4,2661.1,3.75775]
[1727217060650,3.09282504,2661.7,2661.3,3.75756]
[1727217060851,3.09282504,2661.7,2661.1,0.375775]
[1727217060852,3.09282504,2661.7,2661.4,3.75741]
[1727217061052,3.09282504,2661.7,2661.4,7.51482]
[1727217061273,3.09282504,2661.7,2661.4,3.75741]
[1727217062063,3.09282504,2661.7,2661.3,3.75756]
[1727217062264,3.09282504,2661.4,2661.3,3.75756]
[1727217063457,3.09282504,2661.4,2661.1,3.75772]
[1727217063786,3.09282504,2661.4,2661.2,3.75769]
[1727217068673,3.75671,2661.9,2661.3,3.75756]
[1727217068880,5.36673827,2662.0,2661.5,3.75726]
[1727217068881,3.09282504,2661.7,2661.5,3.75726]
[1727217069390,3.09282504,2661.7,2661.4,3.75741]
[1727217072362,3.09282504,2661.7,2661.5,3.75721]
[1727217074762,3.09282504,2661.7,2661.6,3.75713]
[1727217074931,3.09282504,2661.7,2661.5,3.75721]
[1727217075637,0.7571,2662.4,2661.6,0.7917]
[1727217075841,3.09282504,2662.7,2662.2,3.75621]
[1727217076047,0.3092825,2662.6,2662.2,3.75621]
[1727217076247,3.09282504,2662.4,2661.6,0.7917]
[1727217076486,3.09282504,2662.0,2661.9,3.75661]
[1727217076777,3.09282504,2662.2,2661.9,3.75661]
[1727217077137,3.09282504,2662.2,2661.7,3.75698]